bitfinex-derivatives/quotes_BTCF0:USTF0_20250919
["timestamp","ask_amount","ask_price","bid_price","bid_amount"]
[1758291747601,0.913127,116320.0,116310.0,2.38634756]
[1758291747796,0.45937571,116320.0,116310.0,2.38645281]
[1758291748094,1.24841571,116320.0,116310.0,2.38645281]
[1758291748293,0.45937571,116320.0,116310.0,2.38645281]
[1758291748495,1.24841571,116320.0,116310.0,2.38645281]
[1758291748699,0.45937571,116320.0,116310.0,2.38645281]
[1758291748887,1.24841571,116320.0,116310.0,2.38645281]
[1758291749497,0.45937571,116320.0,116310.0,2.38645281]
[1758291749692,1.24841571,116320.0,116310.0,2.38645281]
[1758291751592,0.913127,116320.0,116310.0,2.38645281]
[1758291751805,1.24841571,116320.0,116310.0,2.38645281]
[1758291753503,0.003,116320.0,116310.0,2.98444152]
[1758291753703,0.003,116320.0,116310.0,3.77344152]
[1758291755504,0.003,116320.0,116310.0,4.10873023]
[1758291755802,0.003,116320.0,116310.0,3.85941495]
[1758291756396,0.003,116320.0,116310.0,3.40570366]
[1758291756796,0.003,116320.0,116310.0,3.07041495]
[1758291757092,0.003,116320.0,116310.0,3.85937495]
[1758291758295,0.003,116320.0,116310.0,3.07041495]
[1758291758495,0.003,116320.0,116310.0,3.85933495]
[1758291759004,0.003,116320.0,116310.0,3.85937533]
[1758291759195,0.003,116320.0,116310.0,3.07045533]
[1758291759499,0.003,116320.0,116310.0,3.60937533]
[1758291760796,0.003,116320.0,116310.0,3.87207533]
[1758291762304,0.003,116320.0,116310.0,4.12199533]
[1758291762500,0.003,116320.0,116310.0,4.12239014]
[1758291762804,0.0001,116340.0,116330.0,0.1219089]
[1758291763000,0.0858975,116360.0,116350.0,0.1218943]
[1758291763001,0.0001,116360.0,116350.0,0.1218943]
[1758291763300,0.1082045,116370.0,116360.0,0.120127]
[1758291763499,0.1082045,116370.0,116360.0,1.15150442]
[1758291764102,0.1082045,116370.0,116360.0,0.81621571]
[1758291764301,0.44349321,116370.0,116360.0,0.81621571]
[1758291764501,0.44349321,116370.0,116360.0,0.88600547]
[1758291764906,0.45688321,116370.0,116360.0,0.80010847]
[1758291765306,0.45688321,116370.0,116360.0,0.80893493]
[1758291765805,0.1082045,116370.0,116360.0,0.55954322]
[1758291766006,0.1082045,116370.0,116360.0,0.89483193]
[1758291766312,0.45549321,116370.0,116360.0,0.89783193]
[1758291766502,0.1202045,116370.0,116360.0,0.89783193]
[1758291766703,0.44749321,116370.0,116360.0,0.89583193]
[1758291766904,0.1235945,116370.0,116360.0,0.81593493]
[1758291767110,0.45988321,116370.0,116360.0,0.81693493]
[1758291767507,0.42428321,116370.0,116360.0,0.78270493]
[1758291767709,0.45988321,116370.0,116360.0,0.80599493]
[1758291767903,0.0889945,116370.0,116360.0,0.80599493]
[1758291768104,0.0889896,116370.0,116360.0,1.24075064]
[1758291768613,0.0889896,116370.0,116360.0,1.15485364]
[1758291769415,0.44648831,116370.0,116360.0,0.81956493]
[1758291769613,0.45987831,116370.0,116360.0,0.81956493]
[1758291769912,0.45987831,116370.0,116360.0,1.15485364]
[1758291770207,0.0031,116370.0,116360.0,1.24075064]
[1758291770606,0.0031,116370.0,116360.0,1.82603935]
[1758291771213,0.0031,116370.0,116360.0,1.80274935]
[1758291772011,0.0031,116370.0,116360.0,2.59594935]
[1758291772708,0.0031,116370.0,116360.0,2.59586935]
[1758291772908,0.0031,116370.0,116360.0,1.80274935]
[1758291773109,0.0031,116370.0,116360.0,2.26046064]
[1758291775610,0.0031,116370.0,116360.0,2.26038064]
[1758291775814,0.0031,116370.0,116360.0,1.46746064]
[1758291776020,0.0031,116370.0,116360.0,2.26010064]
[1758291777819,0.0031,116370.0,116360.0,1.80274935]
[1758291778019,0.0031,116370.0,116360.0,2.59498935]
[1758291780422,0.0001,116390.0,116380.0,0.1208022]
[1758291780612,0.0858722,116400.0,116390.0,0.1158748]
[1758291780810,0.0858722,116400.0,116390.0,0.81196351]
[1758291781019,0.1076722,116400.0,116390.0,0.81196351]
[1758291782022,0.1126722,116400.0,116390.0,0.81396351]
[1758291782526,0.1126722,116400.0,116390.0,0.72808871]
[1758291782714,0.46135091,116400.0,116390.0,0.38601]
[1758291783016,0.46135091,116400.0,116390.0,0.72129871]
[1758291783831,0.1126722,116400.0,116390.0,0.81396351]
[1758291784015,0.1260622,116400.0,116390.0,0.72129871]
[1758291784216,0.46435091,116400.0,116390.0,0.72229871]
[1758291785123,1.04963962,116400.0,116390.0,0.38701]
[1758291785518,1.84507962,116400.0,116390.0,0.38701]
[1758291786128,1.1745022,116400.0,116390.0,0.72229871]
[1758291786426,1.50979091,116400.0,116390.0,0.72229871]
[1758291788325,1.50979091,116400.0,116390.0,0.80817371]
[1758291788519,1.50979091,116400.0,116390.0,0.72229871]
[1758291789827,1.50979091,116400.0,116390.0,0.38701]
[1758291790030,1.50979091,116400.0,116390.0,0.72229871]
[1758291790331,1.84507962,116400.0,116390.0,0.38701]
[1758291790528,1.84507962,116400.0,116390.0,0.72229871]
[1758291790921,1.1745022,116400.0,116390.0,0.72229871]
[1758291791122,1.84507962,116400.0,116390.0,0.72229871]
[1758291791718,1.84507962,116400.0,116390.0,0.38701]
[1758291792328,1.84507962,116400.0,116390.0,0.72229871]
[1758291792730,1.84507962,116400.0,116390.0,0.38701]
[1758291793123,1.84507962,116400.0,116390.0,0.72229871]
[1758291793934,1.84507962,116400.0,116390.0,0.38701]
[1758291795433,1.84507962,116400.0,116390.0,0.003]
[1758291797129,1.87216186,116400.0,116390.0,0.003]
[1758291799236,0.40614444,116400.0,116390.0,0.02621]
[1758291799436,1.87098186,116400.0,116390.0,0.02621]
[1758291799632,0.40624444,116400.0,116390.0,0.72229871]
[1758291799825,0.46445091,116400.0,116390.0,2.22229871]
[1758291800232,1.25893091,116400.0,116390.0,2.22229871]
[1758291801037,0.46445091,116400.0,116390.0,2.22229871]
[1758291801432,0.1291622,116400.0,116390.0,2.30817351]
[1758291801627,0.9234022,116400.0,116390.0,2.30817351]
[1758291801937,0.1291622,116400.0,116390.0,2.30817351]
[1758291802240,0.9101322,116400.0,116390.0,2.56496351]
[1758291802638,0.8883322,116400.0,116390.0,2.90025222]
[1758291802833,0.0081,116400.0,116390.0,2.90025222]
[1758291803431,0.0081,116400.0,116390.0,2.2296748]
[1758291803635,0.0081,116400.0,116390.0,2.90025222]
[1758291803836,0.0081,116400.0,116390.0,3.69529222]
[1758291804136,0.0939674,116400.0,116390.0,3.0247148]
[1758291804441,0.0939674,116400.0,116390.0,3.69529222]
[1758291804742,0.0919674,116400.0,116390.0,3.69529222]
[1758291804939,0.0011,116400.0,116390.0,3.69329222]
[1758291805146,0.0031,116400.0,116390.0,3.69529222]
[1758291806538,0.0031,116400.0,116390.0,4.03058093]
[1758291806735,0.0031,116400.0,116390.0,3.69529222]
[1758291807445,0.0031,116400.0,116390.0,4.03058093]
[1758291807738,6.001e-05,116420.0,116410.0,0.1154301]
[1758291807944,6.001e-05,116420.0,116410.0,1.98680044]
[1758291809046,0.00206001,116420.0,116410.0,1.98780044]
[1758291809739,0.00806001,116420.0,116410.0,1.98980044]
[1758291810541,0.00806001,116420.0,116410.0,2.05703249]
[1758291811147,0.00806001,116420.0,116410.0,1.26195249]
[1758291811347,0.00806001,116420.0,116410.0,2.05647249]
[1758291811641,0.00806001,116420.0,116410.0,2.18510842]
[1758291811846,0.09391271,116420.0,116410.0,1.05598067]
[1758291812048,0.09391271,116420.0,116410.0,2.18494842]
[1758291813345,0.09391271,116420.0,116410.0,2.18490842]
[1758291813541,0.09391271,116420.0,116410.0,1.39058842]
[1758291813744,0.09391271,116420.0,116410.0,1.05598067]
[1758291813945,0.09391271,116420.0,116410.0,1.85006067]
[1758291814245,0.09391271,116420.0,116410.0,2.18466842]
[1758291814849,0.09391271,116420.0,116410.0,1.39058842]
[1758291815052,0.09391271,116420.0,116410.0,1.30472832]
[1758291815252,0.09391271,116420.0,116410.0,2.09884832]
[1758291815850,0.09391271,116420.0,116410.0,2.18470842]
[1758291816042,0.09391271,116420.0,116410.0,1.39058842]
[1758291816437,0.09391271,116420.0,116410.0,1.30472832]
[1758291816842,0.09391271,116420.0,116410.0,2.09860832]
[1758291817044,0.09391271,116420.0,116410.0,2.09864832]
[1758291817751,0.09391271,116420.0,116410.0,1.30472832]
[1758291817953,0.46530046,116420.0,116410.0,0.83469464]
[1758291818251,0.71530046,116420.0,116410.0,0.83469464]
[1758291819345,0.46530046,116420.0,116410.0,0.83469464]
[1758291822550,0.13069271,116420.0,116410.0,0.83469464]
[1758291822749,0.13069271,116420.0,116410.0,1.16930239]
[1758291822950,0.11704271,116420.0,116410.0,1.26861249]
[1758291823254,0.09391271,116420.0,116410.0,1.26861249]
[1758291824960,0.09391271,116420.0,116410.0,1.18275239]
[1758291825657,0.09391271,116420.0,116410.0,0.84814464]
[1758291825959,0.09391271,116420.0,116410.0,1.18275239]
[1758291826364,0.09391271,116420.0,116410.0,0.84814464]
[1758291826657,0.09401271,116420.0,116410.0,1.18275239]
[1758291827761,0.0939527,116420.0,116410.0,1.18275239]
[1758291828359,0.0939527,116420.0,116410.0,1.26861249]
[1758291829454,0.0939527,116420.0,116410.0,1.26866682]
[1758291829854,0.0939527,116420.0,116410.0,1.18280672]
[1758291830153,0.0939527,116420.0,116410.0,2.06490682]
[1758291830360,0.0939527,116420.0,116410.0,1.26866682]
[1758291830561,0.0939527,116420.0,116410.0,2.06466682]
[1758291830860,0.0939527,116420.0,116410.0,1.73000474]
[1758291831054,0.0939527,116420.0,116410.0,2.06466682]
[1758291831655,0.0939527,116420.0,116410.0,1.26866682]
[1758291831858,0.0939527,116420.0,116410.0,2.06454682]
[1758291832560,0.0939527,116420.0,116410.0,1.26866682]
[1758291832955,0.0939527,116420.0,116410.0,2.06426682]
[1758291833764,0.0939527,116420.0,116410.0,1.26866682]
[1758291833961,0.0939527,116420.0,116410.0,2.06422682]
[1758291835167,0.0081,116420.0,116410.0,2.06422682]
[1758291836965,0.0939527,116420.0,116410.0,2.06370682]
[1758291837668,0.0939527,116420.0,116410.0,1.26866682]
[1758291837857,0.0939527,116420.0,116410.0,2.06350682]
[1758291838060,0.0081,116420.0,116410.0,2.31350682]
[1758291838460,0.0939527,116420.0,116410.0,2.06334682]
[1758291838757,0.0939527,116420.0,116410.0,1.26866682]
[1758291838959,0.0939527,116420.0,116410.0,2.06322682]
[1758291839260,0.0939527,116420.0,116410.0,2.06326682]
[1758291843063,0.0081,116420.0,116410.0,2.06326682]
[1758291843272,0.093953,116420.0,116410.0,2.06326682]
[1758291843456,0.0081,116420.0,116410.0,2.06326682]
[1758291843657,0.093953,116420.0,116410.0,2.06326682]
[1758291844363,0.093953,116420.0,116410.0,1.26866682]
[1758291844970,0.093953,116420.0,116410.0,2.06226682]
[1758291845168,0.093953,116420.0,116410.0,2.06226702]
[1758291845376,0.093953,116420.0,116410.0,1.26866702]
[1758291845669,0.093953,116420.0,116410.0,2.06214702]
[1758291846269,0.093953,116420.0,116410.0,2.06210702]
[1758291848062,0.093953,116420.0,116410.0,1.97624672]
[1758291848268,0.093953,116420.0,116410.0,1.18280672]
[1758291848470,0.093953,116420.0,116410.0,1.97612672]
[1758291848867,0.093953,116420.0,116410.0,1.97576672]
[1758291849875,0.093953,116420.0,116410.0,2.06162702]
[1758291851075,0.093953,116420.0,116410.0,1.72696494]
[1758291851273,0.093953,116420.0,116410.0,2.06162702]
[1758291851976,0.093953,116420.0,116410.0,2.04154443]
[1758291852174,0.093953,116420.0,116410.0,2.06188894]
[1758291855675,0.093953,116420.0,116410.0,2.06122007]
[1758291856579,0.093953,116420.0,116410.0,1.26826007]
[1758291856773,0.093953,116420.0,116410.0,2.06010007]
[1758291857375,0.093953,116420.0,116410.0,2.03358007]
[1758291858183,0.093953,116420.0,116410.0,2.1875591]
[1758291860384,0.093953,116420.0,116410.0,3.6010588]
[1758291860577,0.093953,116420.0,116410.0,3.6009388]
[1758291860979,0.093953,116420.0,116410.0,3.5911888]
[1758291861295,0.093953,116420.0,116410.0,3.6867586]
[1758291861479,0.093953,116420.0,116410.0,3.53265957]
[1758291861680,0.093953,116420.0,116410.0,2.74173957]
[1758291862084,0.093953,116420.0,116410.0,3.53253957]
[1758291862790,0.093953,116420.0,116410.0,2.89578622]
[1758291862984,0.093953,116420.0,116410.0,3.68650622]
[1758291863287,0.44213508,116420.0,116410.0,2.46555434]
[1758291863487,0.69213508,116420.0,116410.0,2.46555434]
[1758291863688,0.69213508,116420.0,116410.0,2.31150769]
[1758291866187,0.70945612,116420.0,116410.0,2.29183205]
[1758291867692,0.70945612,116420.0,116410.0,1.57023205]
[1758291867896,1.07025612,116420.0,116410.0,1.57023205]
[1758291868891,1.86089612,116420.0,116410.0,1.57023205]
[1758291869087,1.86081612,116420.0,116410.0,1.57023205]
[1758291869485,1.07025612,116420.0,116410.0,1.57023205]
[1758291869686,1.86073612,116420.0,116410.0,1.57023205]
[1758291869886,0.73559404,116420.0,116410.0,1.57023205]
[1758291870083,2.19563334,116420.0,116410.0,1.57023205]
[1758291870290,2.21775334,116420.0,116410.0,0.09224205]
[1758291870787,2.21775334,116420.0,116410.0,1.59224205]
[1758291871594,2.21751334,116420.0,116410.0,1.59224205]
[1758291872788,1.42727334,116420.0,116410.0,1.59224205]
[1758291872991,2.21755334,116420.0,116410.0,1.59224205]
[1758291873192,1.60651334,116420.0,116410.0,2.2878217]
[1758291873393,0.48169369,116420.0,116410.0,2.2878217]
[1758291873698,1.25813369,116420.0,116410.0,2.2975317]
[1758291874097,1.27165369,116420.0,116410.0,2.2878217]
[1758291874294,1.27165369,116420.0,116410.0,1.95304205]
[1758291874598,1.27165369,116420.0,116410.0,2.2878217]
[1758291874800,1.25433265,116420.0,116410.0,2.2878217]
[1758291875102,1.25425265,116420.0,116410.0,2.2878217]
[1758291875295,0.46437265,116420.0,116410.0,2.2878217]
[1758291875483,0.129593,116420.0,116410.0,2.2878217]
[1758291875690,1.25421265,116420.0,116410.0,2.2878217]
[1758291876996,1.25421265,116420.0,116410.0,1.95304205]
[1758291877201,1.25421265,116420.0,116410.0,2.2878217]
[1758291878500,1.25421265,116420.0,116410.0,1.95304205]
[1758291878898,1.5889923,116420.0,116410.0,2.2878217]
[1758291879101,1.5889923,116420.0,116410.0,1.95304205]
[1758291879295,1.5889923,116420.0,116410.0,2.2878217]
[1758291879598,0.46437265,116420.0,116410.0,2.2878217]
[1758291879807,0.116073,116420.0,116410.0,2.3833916]
[1758291879994,0.093953,116420.0,116410.0,2.3833916]
[1758291882598,0.44225265,116420.0,116410.0,2.2878217]
[1758291883206,0.44225265,116420.0,116410.0,1.95304205]
[1758291883407,0.44225265,116420.0,116410.0,2.2878217]
[1758291884508,0.44225265,116420.0,116410.0,2.44186835]
[1758291884710,1.21857265,116420.0,116410.0,2.45157835]
[1758291885399,0.093953,116420.0,116410.0,2.53743815]
[1758291886310,0.093953,116420.0,116410.0,3.1222178]
[1758291887109,0.093953,116420.0,116410.0,2.78743815]
[1758291887811,0.093953,116420.0,116410.0,3.57727815]
[1758291888003,0.093953,116420.0,116410.0,2.70157835]
[1758291888206,0.093953,116420.0,116410.0,3.49141835]
[1758291889008,0.093953,116420.0,116410.0,3.57727815]
[1758291892709,0.093953,116420.0,116410.0,2.69186835]
[1758291893010,0.44147265,116420.0,116410.0,2.69186835]
[1758291893410,0.44147265,116420.0,116410.0,2.77772815]
[1758291893812,0.44147265,116420.0,116410.0,3.56752815]
[1758291894609,0.42873265,116420.0,116410.0,3.57723815]
[1758291896510,0.093953,116420.0,116410.0,3.57723815]
[1758291896709,0.42873265,116420.0,116410.0,3.57723815]
[1758291899012,0.42873265,116420.0,116410.0,3.4231915]
[1758291900120,0.093953,116420.0,116410.0,3.4231915]
[1758291900318,0.42873265,116420.0,116410.0,2.21275205]
[1758291900511,0.44239265,116420.0,116410.0,3.3275817]
[1758291900819,0.44239265,116420.0,116410.0,3.0775817]
[1758291901125,0.44239265,116420.0,116410.0,3.1634417]
[1758291901311,0.107613,116420.0,116410.0,2.3736817]
[1758291901510,0.093953,116420.0,116410.0,3.1731117]
[1758291905424,0.093953,116420.0,116410.0,3.32715835]
[1758291907323,0.0081,116420.0,116410.0,3.911938]
[1758291907512,0.04231053,116440.0,116430.0,0.0955553]
[1758291907720,0.04231053,116440.0,116430.0,2.2987846]
[1758291908119,0.04231053,116440.0,116430.0,1.5091046]
[1758291908423,0.04231053,116440.0,116430.0,2.2987446]
[1758291909224,0.04631053,116440.0,116430.0,2.2997446]
[1758291909423,0.05731053,116440.0,116430.0,1.5121046]
[1758291909623,0.05731053,116440.0,116430.0,2.3017446]
[1758291910424,0.05631053,116440.0,116430.0,2.3017446]
[1758291910926,0.05631053,116440.0,116430.0,2.31020019]
[1758291911227,0.014,116440.0,116430.0,2.31016019]
[1758291911419,0.014,116440.0,116430.0,2.56016019]
[1758291911619,0.003,116440.0,116430.0,1.76856019]
[1758291911918,0.009,116440.0,116430.0,1.76956019]
[1758291912123,0.009,116440.0,116430.0,1.92333237]
[1758291912320,0.009,116440.0,116430.0,2.71293237]
[1758291912518,0.009,116440.0,116430.0,1.92333237]
[1758291913024,0.009,116440.0,116430.0,2.71289237]
[1758291914427,0.009,116440.0,116430.0,2.71285237]
[1758291916132,0.009,116440.0,116430.0,1.92333237]
[1758291916327,0.009,116440.0,116430.0,2.71281237]
[1758291916532,0.009,116440.0,116430.0,1.92333237]
[1758291916829,0.009,116440.0,116430.0,2.71281237]
[1758291918332,1e-08,116440.0,116430.0,3.31029202]
[1758291919828,0.1071988,116460.0,116450.0,0.0321]
[1758291920035,0.0858288,116460.0,116450.0,1.9376898]
[1758291920331,0.0858288,116460.0,116450.0,2.2984898]
[1758291920535,0.0858288,116460.0,116450.0,1.5090898]
[1758291921726,0.0918288,116460.0,116450.0,1.5100898]
[1758291922132,0.0918288,116460.0,116450.0,0.8405305]
[1758291922334,0.1091988,116460.0,116450.0,1.08947965]
[1758291922632,0.45688845,116460.0,116450.0,1.07976965]
[1758291922834,0.1261088,116460.0,116450.0,1.14854853]
[1758291923032,0.46088845,116460.0,116450.0,1.14854853]
[1758291923227,1.0456681,116460.0,116450.0,0.09216888]
[1758291923427,1.8350281,116460.0,116450.0,0.09216888]
[1758291923828,1.8330281,116460.0,116450.0,0.09116888]
[1758291925433,1.1634688,116460.0,116450.0,0.42594853]
[1758291925638,1.49824845,116460.0,116450.0,0.42594853]
[1758291925831,0.70888845,116460.0,116450.0,0.42594853]
[1758291926031,1.49820845,116460.0,116450.0,0.42594853]
[1758291926232,0.70898845,116460.0,116450.0,0.78674853]
[1758291926536,0.70898845,116460.0,116450.0,0.79645853]
[1758291926742,0.3742088,116460.0,116450.0,0.88228883]
[1758291927035,0.1112988,116460.0,116450.0,0.88228883]
[1758291928937,0.0041,116460.0,116450.0,2.00654848]
[1758291929234,0.0234,116490.0,116480.0,0.1175282]
[1758291929440,0.0858008,116490.0,116480.0,1.4228793]
[1758291929736,0.1091008,116490.0,116480.0,1.08755911]
[1758291930039,0.1091008,116490.0,116480.0,1.87747911]
[1758291930227,0.1091008,116490.0,116480.0,1.08755911]
[1758291930427,0.1091008,116490.0,116480.0,1.87743911]
[1758291930932,0.1141008,116490.0,116480.0,1.08855911]
[1758291931534,0.1141008,116490.0,116480.0,1.87827911]
[1758291931728,0.1141008,116490.0,116480.0,1.08955911]
[1758291931729,0.1191008,116490.0,116480.0,1.08955911]
[1758291932241,0.1191008,116490.0,116480.0,1.87919911]
[1758291932848,0.1320108,116490.0,116480.0,1.07984911]
[1758291933155,0.1300108,116490.0,116480.0,1.07884911]
[1758291933746,0.46424991,116490.0,116480.0,0.02301]
[1758291933952,0.71424991,116490.0,116480.0,0.001]
[1758291934152,0.71424991,116490.0,116480.0,0.02301]
[1758291934656,0.71424991,116490.0,116480.0,0.001]
[1758291935158,0.3800108,116490.0,116480.0,0.80385761]
[1758291935551,0.1300108,116490.0,116480.0,0.80385761]
[1758291935741,0.1300108,116490.0,116480.0,0.71804911]
[1758291936950,0.1300108,116490.0,116480.0,0.80385761]
[1758291937653,0.1171008,116490.0,116480.0,0.80385761]
[1758291937953,0.0938008,116490.0,116480.0,0.81356761]
[1758291939652,0.0938008,116490.0,116480.0,1.85284761]
[1758291940356,0.0938008,116490.0,116480.0,1.85276761]
[1758291940949,0.008,116490.0,116480.0,2.18700672]
[1758291942056,0.008,116490.0,116480.0,2.18696672]
[1758291942454,0.004,116490.0,116480.0,2.18796672]
[1758291943055,0.001,116490.0,116480.0,2.18796672]
[1758291945058,0.001,116490.0,116480.0,2.18792672]
[1758291946559,0.001,116490.0,116480.0,2.45062672]
[1758291946960,0.001,116490.0,116480.0,2.53647468]
[1758291947163,0.001,116490.0,116480.0,2.53643468]
[1758291947562,0.001,116490.0,116480.0,1.74735468]
[1758291947861,0.0011,116490.0,116480.0,1.74735468]
[1758291948062,0.0011,116490.0,116480.0,2.53643468]
[1758291948562,0.0011,116490.0,116480.0,1.74735468]
[1758291949058,0.0011,116490.0,116480.0,2.53639468]
[1758291949361,0.0011,116490.0,116480.0,1.74735468]
[1758291949563,0.0011,116490.0,116480.0,2.53639468]
[1758291951756,0.0011,116490.0,116480.0,2.20050672]
[1758291952360,0.0857904,116510.0,116500.0,0.1166632]
[1758291952564,0.0857904,116510.0,116500.0,1.96150231]
[1758291953563,0.0887904,116510.0,116500.0,1.15547957]
[1758291953751,0.0887904,116510.0,116500.0,1.94447957]
[1758291954270,0.1015504,116510.0,116500.0,1.94447957]
[1758291954956,0.0887904,116510.0,116500.0,1.94447957]
[1758291955156,0.0947904,116510.0,116500.0,1.95417914]
[1758291956263,0.0947904,116510.0,116500.0,1.16517914]
[1758291956465,0.0947904,116510.0,116500.0,1.95413914]
[1758291956654,0.0947904,116510.0,116500.0,2.03993254]
[1758291957760,0.0947904,116510.0,116500.0,1.25097254]
[1758291957961,0.0947904,116510.0,116500.0,2.03989254]
[1758291958567,0.0947904,116510.0,116500.0,1.16517914]
[1758291958768,0.0947904,116510.0,116500.0,1.95409914]
[1758291958962,0.1079704,116510.0,116500.0,1.16517914]
[1758291959158,0.1079704,116510.0,116500.0,1.95409914]
[1758291959358,0.1079704,116510.0,116500.0,2.03989254]
[1758291959557,0.0947904,116510.0,116500.0,2.03989254]
[1758291960157,0.009,116510.0,116500.0,2.03989254]
[1758291961561,0.10323252,116540.0,116500.0,2.28989254]
[1758291961763,0.1090397,116540.0,116530.0,0.72664911]
[1758291961962,0.1090397,116540.0,116530.0,3.01552911]
[1758291962165,0.1222197,116540.0,116530.0,1.8827]
[1758291962468,0.1222197,116540.0,116530.0,2.21693911]
[1758291962866,0.1392197,116540.0,116530.0,2.21693911]
[1758291963461,0.1322197,116540.0,116530.0,2.21793911]
[1758291963657,0.71645881,116540.0,116530.0,1.8837]
[1758291964062,0.72445881,116540.0,116530.0,1.8837]
[1758291964873,0.72145881,116540.0,116530.0,1.8847]
[1758291965062,1.08225881,116540.0,116530.0,1.5239]
[1758291965269,1.08225881,116540.0,116530.0,1.502]
[1758291966565,1.87105881,116540.0,116530.0,1.502]
[1758291967164,1.08225881,116540.0,116530.0,1.502]
[1758291967466,1.87105881,116540.0,116530.0,0.002]
[1758291967969,0.01318,116510.0,116500.0,0.53723003]
[1758291968160,0.45643571,116510.0,116500.0,0.55913003]
[1758291968356,0.1221966,116510.0,116500.0,0.55913003]
[1758291968565,0.1221966,116510.0,116500.0,1.69833003]
[1758291968864,0.45643571,116510.0,116500.0,1.68963046]
[1758291969169,0.1221966,116510.0,116500.0,1.66773046]
[1758291969373,0.45643571,116510.0,116500.0,1.66773046]
[1758291969563,0.70643571,116510.0,116500.0,1.66773046]
[1758291969760,0.70643571,116510.0,116500.0,1.67173046]
[1758291970269,1.49519571,116510.0,116500.0,1.67173046]
[1758291970467,0.70643571,116510.0,116500.0,1.67173046]
[1758291970771,1.1609566,116510.0,116500.0,1.67173046]
[1758291971070,1.49519571,116510.0,116500.0,1.67173046]
[1758291971270,0.70653571,116510.0,116500.0,1.67173046]
[1758291971470,1.49529571,116510.0,116500.0,1.67173046]
[1758291972468,0.70653571,116510.0,116500.0,1.67173046]
[1758291972669,1.49533571,116510.0,116500.0,1.67173046]
[1758291974374,0.70653571,116510.0,116500.0,1.67173046]
[1758291974563,1.49533571,116510.0,116500.0,1.67173046]
[1758291975468,1.49533571,116510.0,116500.0,1.64765626]
[1758291975769,1.49533571,116510.0,116500.0,1.56756496]
[1758291975770,1.06733571,116510.0,116500.0,1.56756496]
[1758291975966,1.85613571,116510.0,116500.0,1.56756496]
[1758291976771,1.85613571,116510.0,116500.0,0.06756496]
[1758291977272,1.85613571,116510.0,116500.0,1.56756496]
[1758291978274,1.06733571,116510.0,116500.0,1.56756496]
[1758291978463,1.85613571,116510.0,116500.0,1.56756496]
[1758291978864,0.3722966,116510.0,116500.0,1.99822185]
[1758291979072,0.0001,116510.0,116500.0,3.03876476]
[1758291979370,0.0858864,116510.0,116500.0,2.95297096]
[1758291979676,0.0858864,116510.0,116500.0,3.03876476]
[1758291981972,0.0858864,116510.0,116500.0,3.12041079]
[1758291982471,0.0858864,116510.0,116500.0,3.11941079]
[1758291982671,0.0001,116510.0,116500.0,3.11941079]
[1758291983170,0.0001,116510.0,116500.0,3.13915124]
[1758291986776,0.0001,116510.0,116500.0,3.11941079]
[1758291987970,0.0001,116510.0,116500.0,3.27318297]
[1758291989882,0.0001,116510.0,116500.0,3.27586193]
[1758291990981,0.0001,116510.0,116500.0,3.12208975]
[1758291992078,0.0001,116510.0,116500.0,3.91080975]
[1758291992274,0.0001,116510.0,116500.0,3.12208975]
[1758291992474,0.0001,116510.0,116500.0,3.91080975]
[1758291992883,0.0001,116510.0,116500.0,4.04266652]
[1758291993783,0.0001,116510.0,116500.0,3.25394652]
[1758291994084,0.0858866,116510.0,116500.0,3.95687272]
[1758291994382,0.0858866,116510.0,116500.0,3.95683272]
[1758291994583,0.0858866,116510.0,116500.0,4.04262672]
[1758291995392,0.0858866,116510.0,116500.0,3.25394672]
[1758291995683,0.0858866,116510.0,116500.0,4.04262672]
[1758291996275,0.0993266,116510.0,116500.0,3.65105995]
[1758291996475,0.3493266,116510.0,116500.0,2.35902185]
[1758291996675,0.3493266,116510.0,116500.0,3.14770185]
[1758291998284,0.3493266,116510.0,116500.0,3.56526595]
[1758291999082,0.3493266,116510.0,116500.0,3.14770185]
[1758291999275,0.0993266,116510.0,116500.0,3.14770185]
[1758292000082,0.0993266,116510.0,116500.0,3.56526595]
[1758292000682,0.0993266,116510.0,116500.0,2.35902185]
[1758292002996,0.0993266,116510.0,116500.0,2.77658595]
[1758292003690,0.0993266,116510.0,116500.0,2.35902185]
[1758292003887,0.43352095,116510.0,116500.0,2.6932162]
[1758292004282,0.43352095,116510.0,116500.0,2.35902185]
[1758292004483,0.68352095,116510.0,116500.0,1.99822185]
[1758292005199,1.47216095,116510.0,116500.0,2.3324162]
[1758292006387,1.47216095,116510.0,116500.0,1.99822185]
[1758292006587,1.47216095,116510.0,116500.0,2.3324162]
[1758292007194,1.47216095,116510.0,116500.0,1.63742185]
[1758292010196,0.68352095,116510.0,116500.0,1.63742185]
[1758292010391,1.47216095,116510.0,116500.0,1.63742185]
[1758292011398,0.68352095,116510.0,116500.0,1.63742185]
[1758292011584,1.47216095,116510.0,116500.0,1.63742185]
[1758292011788,1.8063553,116510.0,116500.0,1.63742185]
[1758292013501,1.0177153,116510.0,116500.0,1.63742185]
[1758292013800,1.47216095,116510.0,116500.0,1.63742185]
[1758292013999,1.8063553,116510.0,116500.0,1.63742185]
[1758292015000,1.47216095,116510.0,116500.0,1.63742185]
[1758292016397,1.8063553,116510.0,116500.0,1.63742185]
[1758292017498,1.0177153,116510.0,116500.0,1.63742185]
[1758292017697,1.8063553,116510.0,116500.0,1.63742185]
[1758292018101,1.0177153,116510.0,116500.0,1.63742185]
[1758292018402,1.47216095,116510.0,116500.0,1.63742185]
[1758292019896,1.8063553,116510.0,116500.0,1.63742185]
[1758292020097,2.52327965,116510.0,116490.0,5e-08]
[1758292020298,3.29207705,116500.0,116490.0,5e-08]
[1758292020600,0.1207561,116470.0,116460.0,0.04194019]
[1758292020796,1.24359045,116470.0,116460.0,0.04194019]
[1758292020996,0.0987337,116460.0,116450.0,1.8608]
[1758292021299,0.7671224,116460.0,116450.0,1.92900464]
[1758292021504,0.7671224,116460.0,116450.0,1.93781859]
[1758292022689,1.5558024,116460.0,116450.0,1.93781859]
[1758292023398,0.7671224,116460.0,116450.0,1.93781859]
[1758292023599,1.5558024,116460.0,116450.0,1.57120464]
[1758292024004,1.5558024,116460.0,116450.0,1.57320464]
[1758292025008,0.11584881,116460.0,116450.0,1.57320464]
[1758292025197,1.57291751,116460.0,116450.0,1.57320464]
[1758292025500,1.57295751,116460.0,116450.0,1.57320464]
[1758292026100,0.11584881,116460.0,116450.0,1.57320464]
[1758292026306,0.90456881,116460.0,116450.0,1.57320464]
[1758292026607,1.57295751,116460.0,116450.0,1.57320464]
[1758292028710,1.57299751,116460.0,116450.0,1.57320464]
[1758292029201,0.78423751,116460.0,116450.0,1.57320464]
[1758292029401,1.57299751,116460.0,116450.0,1.57320464]
[1758292029607,1.57299751,116460.0,116450.0,1.5818889]
[1758292030309,0.78423751,116460.0,116450.0,1.5818889]
[1758292030500,1.57303751,116460.0,116450.0,1.5818889]
[1758292032606,1.59506751,116460.0,116450.0,0.07320464]